bitfinex/quotes_BTCUSD_20220304
["timestamp","ask_amount","ask_price","bid_price","bid_amount"]
[1646434210769,0.13123721,38891.0,38886.0,0.0516]
[1646434211572,0.3,38899.0,38886.0,0.050974]
[1646434211573,0.00020652,38890.0,38886.0,0.050974]
[1646434212318,0.32535,38904.0,38886.0,0.050974]
[1646434212517,0.13123721,38893.0,38886.0,0.050974]
[1646434212717,0.00020652,38890.0,38886.0,0.050974]
[1646434213517,0.32535,38900.0,38886.0,0.050974]
[1646434213518,0.32138247,38900.0,38886.0,0.050974]
[1646434213718,0.1,38899.0,38886.0,0.050974]
[1646434213918,0.00020652,38890.0,38886.0,0.050974]
[1646434214519,0.00020652,38890.0,38885.0,0.64730033]
[1646434214921,0.89127969,38890.0,38885.0,0.64730033]
[1646434215979,1.0225169,38890.0,38885.0,0.64730033]
[1646434216578,0.89127969,38890.0,38885.0,0.64730033]
[1646434218676,0.13123721,38893.0,38885.0,0.64730033]
[1646434221318,0.13123721,38888.0,38885.0,0.64730033]
[1646434221919,0.12623721,38888.0,38885.0,0.64730033]
[1646434222117,0.25,38899.0,38885.0,0.64730033]
[1646434222417,0.12623721,38887.0,38885.0,0.64730033]
[1646434222622,0.12623721,38887.0,38885.0,0.45693402]
[1646434222821,0.3,38886.0,38885.0,0.40558062]
[1646434223072,0.67711,38886.0,38885.0,0.40558062]
[1646434223270,0.77711,38886.0,38885.0,0.40558062]
[1646434223470,0.92711,38886.0,38885.0,0.40558062]
[1646434223670,0.92711,38886.0,38885.0,0.20342277]
[1646434223671,0.77711,38886.0,38885.0,0.20342277]
[1646434223871,0.67711,38886.0,38885.0,0.20342277]
[1646434224073,0.37711,38886.0,38885.0,0.20342277]
[1646434224972,0.12623721,38887.0,38885.0,0.20342277]
[1646434227420,0.004,38891.0,38885.0,0.20342277]
[1646434227618,0.12123721,38887.0,38885.0,0.20342277]
[1646434228419,0.09317337,38887.0,38885.0,0.20342277]
[1646434231275,0.003,38890.0,38885.0,0.20342277]
[1646434231482,0.003,38890.0,38886.0,0.376753]
[1646434231679,0.003,38890.0,38888.0,0.402103]
[1646434231977,0.003,38890.0,38888.0,0.421402]
[1646434232580,0.00021654,38898.0,38888.0,0.044649]
[1646434233083,0.09317337,38893.0,38888.0,0.044649]
[1646434233282,0.09317337,38893.0,38889.0,0.376753]
[1646434233578,0.09317337,38893.0,38888.0,0.044649]
[1646434233778,0.00021655,38898.0,38888.0,0.044649]
[1646434233978,0.09317337,38893.0,38888.0,0.044649]
[1646434234418,0.09317337,38893.0,38888.0,0.02535]
[1646434236115,0.00021656,38898.0,38888.0,0.02535]
[1646434236317,0.00021656,38898.0,38888.0,0.044648]
[1646434236515,0.15,38903.0,38888.0,0.044648]
[1646434236516,0.15,38903.0,38889.0,0.3]
[1646434236717,0.00021576,38898.0,38889.0,0.3]
[1646434237116,0.00021576,38898.0,38890.0,0.376753]
[1646434237521,0.00021576,38898.0,38891.0,1.128347]
[1646434237721,0.09317337,38899.0,38892.0,0.86065]
[1646434238169,0.00021576,38898.0,38893.0,0.02535]
[1646434238965,0.09317337,38899.0,38893.0,0.02535]
[1646434239165,0.00021577,38898.0,38893.0,0.02535]
[1646434239966,0.00021577,38898.0,38892.0,0.0516]
[1646434240166,0.09317337,38899.0,38893.0,0.376753]
[1646434240466,0.00021658,38898.0,38893.0,0.376753]
[1646434241266,0.09317337,38899.0,38893.0,0.376753]
[1646434241819,0.00021658,38898.0,38893.0,0.376753]
[1646434242621,0.09317337,38899.0,38893.0,0.376753]
[1646434242823,0.00021658,38898.0,38893.0,0.376753]
[1646434243824,1.069072,38907.0,38891.0,1.128347]
[1646434244021,0.00021658,38898.0,38892.0,1.160453]
[1646434244222,0.00021658,38898.0,38892.0,1.460453]
[1646434245022,1.16224537,38907.0,38894.0,0.019295]
[1646434245223,0.00021465,38898.0,38895.0,0.376753]
[1646434246067,1.16224537,38907.0,38895.0,0.376753]
[1646434246270,1.16224537,38907.0,38892.0,0.3]
[1646434246467,0.00021465,38898.0,38892.0,0.3]
[1646434246666,0.00021465,38898.0,38893.0,0.376753]
[1646434247268,1.069072,38907.0,38893.0,0.376753]
[1646434247467,1.069072,38907.0,38892.0,0.3]
[1646434247668,0.00021465,38898.0,38891.0,0.044647]
[1646434247869,0.00021465,38898.0,38892.0,0.376753]
[1646434248468,1.46224537,38907.0,38892.0,1.160453]
[1646434248669,0.35757407,38904.0,38891.0,0.044647]
[1646434248871,0.00021658,38898.0,38892.0,0.376753]
[1646434249334,0.00021658,38898.0,38892.0,0.8539812]
[1646434249735,0.35757407,38904.0,38893.0,0.0516]
[1646434249935,0.00021658,38898.0,38893.0,0.0516]
[1646434250139,0.00021658,38898.0,38894.0,0.37666]
[1646434250835,0.35757407,38903.0,38894.0,0.37666]
[1646434251033,0.35757407,38903.0,38893.0,0.0516]
[1646434251235,0.00021659,38898.0,38894.0,0.37666]
[1646434251838,0.00021659,38898.0,38894.0,0.395955]
[1646434252037,0.35757407,38903.0,38894.0,0.395955]
[1646434252240,0.35757407,38903.0,38894.0,0.019295]
[1646434252438,0.00021588,38898.0,38895.0,0.37666]
[1646434253274,0.35757407,38902.0,38900.0,0.00192812]
[1646434253473,1.069072,38907.0,38900.0,0.00167649]
[1646434253474,0.35757407,38903.0,38900.0,0.00167649]
[1646434254078,0.09317337,38902.0,38900.0,0.00167649]
[1646434254675,0.35757407,38903.0,38900.0,0.00167649]
[1646434254876,0.35777945,38903.0,38900.0,0.00167649]
[1646434255074,0.00020538,38903.0,38900.0,0.00167649]
[1646434255475,0.35777945,38903.0,38900.0,0.00167649]
[1646434255676,0.35757407,38903.0,38900.0,0.00167649]
[1646434256174,0.09317337,38901.0,38900.0,0.00167649]
[1646434259527,0.00020909,38902.0,38900.0,0.00167649]
[1646434260325,0.35757407,38904.0,38900.0,0.00167649]
[1646434260564,0.09317337,38901.0,38900.0,0.00167649]
[1646434263467,0.09317337,38901.0,38900.0,0.00149492]
[1646434263667,0.46983337,38901.0,38900.0,0.00149492]
[1646434264069,0.09317337,38901.0,38900.0,0.00149492]
[1646434265921,0.46983337,38901.0,38900.0,0.00149492]
[1646434266319,0.82740744,38901.0,38900.0,0.00149492]
[1646434267921,0.52077239,38901.0,38900.0,0.00149492]
[1646434268372,0.52077239,38901.0,38900.0,0.00089736]
[1646434268774,0.82077239,38901.0,38900.0,0.00089736]
[1646434268970,0.67077239,38901.0,38900.0,0.00089736]
[1646434269170,0.82077239,38901.0,38900.0,0.00089736]
[1646434269371,0.81862839,38901.0,38900.0,0.00089736]
[1646434270270,0.66862839,38901.0,38900.0,0.00089736]
[1646434270469,0.80694278,38901.0,38900.0,0.00089736]
[1646434270671,1.21625415,38901.0,38900.0,0.00089736]
[1646434271071,0.80694278,38901.0,38900.0,0.00089736]
[1646434272020,0.66862839,38901.0,38900.0,0.00089736]
[1646434272220,0.62077239,38901.0,38900.0,0.00089736]
[1646434273117,0.75908678,38901.0,38900.0,0.00089736]
[1646434273317,0.62077239,38901.0,38900.0,0.00089736]
[1646434273618,0.75908678,38901.0,38892.0,0.37230844]
[1646434273818,0.09317337,38894.0,38892.0,0.37230844]
[1646434274017,0.35766983,38894.0,38892.0,0.37230844]
[1646434274219,0.30657366,38893.0,38892.0,0.37230844]
[1646434274619,0.30657366,38895.0,38892.0,0.37230844]
[1646434274822,0.30657366,38894.0,38892.0,0.37230844]
[1646434275220,0.30657366,38895.0,38892.0,0.37230844]
[1646434276683,0.24593603,38895.0,38892.0,0.37230844]
[1646434276883,0.35766983,38897.0,38892.0,0.37230844]
[1646434277686,0.09317337,38896.0,38892.0,0.37230844]
[1646434278483,0.35766983,38897.0,38892.0,0.37230844]
[1646434278685,0.35766983,38896.0,38892.0,0.37230844]
[1646434278883,0.35766983,38897.0,38892.0,0.37230844]
[1646434279085,0.35766983,38897.0,38892.0,0.39160544]
[1646434279521,0.35766983,38897.0,38892.0,0.37230844]
[1646434280124,0.09317337,38896.0,38892.0,0.37230844]
[1646434280321,0.4508432,38897.0,38892.0,0.37230844]
[1646434280720,0.35766983,38896.0,38892.0,0.37230844]
[1646434281120,0.35766983,38895.0,38892.0,0.37230844]
[1646434281322,0.35766983,38896.0,38892.0,0.37230844]
[1646434281524,0.09317337,38895.0,38892.0,0.37230844]
[1646434281728,0.4508432,38895.0,38892.0,0.37230844]
[1646434282524,0.4508432,38895.0,38893.0,0.37666]
[1646434282525,0.35766983,38895.0,38893.0,0.37666]
[1646434282728,0.09317337,38899.0,38892.0,0.37230844]
[1646434282729,0.35766983,38897.0,38892.0,0.37230844]
[1646434283769,0.4508432,38897.0,38892.0,0.37230844]
[1646434284169,0.35766983,38896.0,38892.0,0.37230844]
[1646434284367,0.4508432,38897.0,38892.0,0.37230844]
[1646434284968,0.35766983,38897.0,38892.0,0.37230844]
[1646434285569,0.35766983,38897.0,38893.0,0.37666]
[1646434285770,0.35766983,38897.0,38894.0,0.37666]
[1646434285971,0.35766983,38898.0,38895.0,0.37666]
[1646434286170,0.03766599,38894.0,38892.0,0.37230844]
[1646434286372,0.03766599,38894.0,38893.0,0.37666]
[1646434286822,0.03766599,38894.0,38892.0,0.37230844]
[1646434287222,0.03766599,38894.0,38893.0,0.37666]
[1646434287424,0.03766599,38894.0,38892.0,0.37230844]
[1646434289827,0.13083936,38894.0,38892.0,0.37230844]
[1646434290768,0.09317337,38893.0,38892.0,0.37230844]
[1646434291771,0.13083936,38894.0,38892.0,0.37230844]
[1646434292170,0.03766599,38894.0,38892.0,0.37230844]
[1646434292371,0.13083936,38894.0,38892.0,0.37230844]
[1646434292571,0.03766599,38894.0,38892.0,0.37230844]
[1646434293372,0.02716599,38894.0,38892.0,0.37230844]
[1646434295828,0.02033936,38894.0,38892.0,0.37230844]
[1646434299373,0.37666,38893.0,38892.0,0.37230844]
[1646434300072,0.02033936,38894.0,38892.0,0.37230844]
[1646434300273,0.37666,38893.0,38892.0,0.37230844]
[1646434300474,0.02033936,38894.0,38892.0,0.37230844]
[1646434307669,0.02033936,38894.0,38892.0,0.43662644]
[1646434307873,0.02033936,38894.0,38893.0,0.376702]
[1646434308070,0.02033936,38894.0,38892.0,0.43662644]
[1646434308271,0.02033936,38894.0,38893.0,0.376702]
[1646434308470,0.02033936,38894.0,38892.0,0.43662644]
[1646434308674,0.02033936,38894.0,38893.0,0.376702]
[1646434309322,0.02033936,38894.0,38892.0,0.37230844]
[1646434309923,0.02033936,38894.0,38893.0,0.376702]
[1646434312026,0.0001975,38904.0,38893.0,0.376702]
[1646434312225,0.13860836,38906.0,38895.0,0.376702]
[1646434312424,0.13860836,38906.0,38893.0,0.376702]
[1646434312825,0.13860836,38906.0,38895.0,0.376702]
[1646434313081,1.069072,38907.0,38893.0,0.08361]
[1646434313280,1.069072,38907.0,38894.0,0.8191657]
[1646434313480,1.069072,38907.0,38894.0,0.4424637]
[1646434314780,0.3,38906.0,38894.0,0.4424637]
[1646434315182,1.069072,38907.0,38894.0,0.4424637]
[1646434315782,0.3,38906.0,38894.0,0.4424637]
[1646434315982,0.00021583,38904.0,38894.0,0.4424637]
[1646434316827,0.00021583,38904.0,38894.0,0.43760772]
[1646434317033,0.4398413,38906.0,38894.0,0.43760772]
[1646434317230,0.00021582,38904.0,38894.0,0.43760772]
[1646434318228,0.4398413,38906.0,38894.0,0.43760772]
[1646434319229,0.1398413,38906.0,38894.0,0.43760772]
[1646434319429,0.4398413,38906.0,38894.0,0.43760772]
[1646434320690,0.1398413,38906.0,38894.0,0.43760772]
[1646434320889,0.00021556,38904.0,38894.0,0.43760772]
[1646434321889,0.4397102,38906.0,38894.0,0.43760772]
[1646434322088,0.00021556,38904.0,38894.0,0.43760772]
[1646434323089,0.1397102,38906.0,38894.0,0.43760772]
[1646434323290,0.00021556,38904.0,38894.0,0.43760772]
[1646434324194,1.069072,38907.0,38894.0,0.43760772]
[1646434324425,0.00021556,38904.0,38894.0,0.43760772]
[1646434325423,0.13965803,38906.0,38894.0,0.43760772]
[1646434325424,0.43965803,38906.0,38894.0,0.43760772]
[1646434325624,0.00021556,38904.0,38894.0,0.43760772]
[1646434326629,0.43965803,38906.0,38894.0,0.43760772]
[1646434326832,0.00021556,38904.0,38894.0,0.43760772]
[1646434327830,1.069072,38907.0,38895.0,0.0516]
[1646434328072,0.00021556,38904.0,38895.0,0.0516]
[1646434329105,1.069072,38907.0,38895.0,0.0516]
[1646434329275,0.00021441,38904.0,38895.0,0.0516]
[1646434330279,0.3,38906.0,38895.0,0.0516]
[1646434330476,0.3,38906.0,38894.0,0.43760772]
[1646434330477,0.00021441,38904.0,38894.0,0.43760772]
[1646434331478,1.069072,38907.0,38894.0,0.43760772]
[1646434331926,0.3,38906.0,38894.0,0.43760772]
[1646434332327,0.29941457,38906.0,38894.0,0.43760772]
[1646434332726,1.069072,38907.0,38894.0,0.43760772]
[1646434332931,1.069072,38907.0,38895.0,0.728302]
[1646434332932,0.00020281,38904.0,38895.0,0.728302]
[1646434333726,1.069072,38907.0,38895.0,0.728302]
[1646434333928,1.069072,38907.0,38896.0,0.376702]
[1646434334129,1.069072,38907.0,38897.0,0.3]
[1646434334130,0.00020281,38904.0,38897.0,0.3]
[1646434334327,0.00020281,38904.0,38897.0,1.11428509]
[1646434334731,0.00020281,38904.0,38897.0,0.81428509]
[1646434334927,1.069072,38907.0,38897.0,1.11428509]
[1646434335129,1.069072,38907.0,38898.0,0.376702]
[1646434335328,0.00020282,38904.0,38897.0,0.73758309]
[1646434335576,0.00020282,38904.0,38898.0,0.376702]
[1646434335777,0.00020282,38904.0,38897.0,0.48918309]
[1646434335977,0.00020282,38904.0,38898.0,0.376702]
[1646434336178,1.069072,38907.0,38899.0,0.81426046]
[1646434336479,1.069072,38907.0,38900.0,0.376702]
[1646434336480,0.00021531,38904.0,38900.0,0.376702]
[1646434336680,0.00021531,38904.0,38901.0,0.0516]
[1646434336881,5.31e-06,38904.0,38902.0,0.676702]
[1646434337081,5.31e-06,38904.0,38903.0,0.792596]
[1646434337483,1.069072,38907.0,38903.0,0.492596]
[1646434337678,1.069072,38907.0,38904.0,0.846049]
[1646434337882,1.069072,38907.0,38905.0,0.0516]
[1646434338080,0.396932,38907.0,38906.0,0.676702]
[1646434338278,0.35803854,38925.0,38907.0,0.75]
[1646434338481,0.39692073,38927.0,38910.0,0.128563]
[1646434338678,0.39692073,38927.0,38914.0,0.019285]
[1646434338877,0.39692073,38927.0,38915.0,0.0516]
[1646434339527,0.35913854,38926.0,38915.0,0.0516]
[1646434340032,0.0011,38926.0,38915.0,0.0516]
[1646434340227,0.0002159,38922.0,38915.0,0.0516]
[1646434340427,0.0002159,38922.0,38916.0,0.376702]
[1646434340827,0.03888219,38927.0,38917.0,0.0516]
[1646434341227,0.03888219,38927.0,38917.0,0.50023973]
[1646434341827,0.03888219,38927.0,38917.0,0.56891973]
[1646434342228,0.03888219,38927.0,38917.0,0.86891973]
[1646434342229,0.376702,38926.0,38917.0,0.86891973]
[1646434342429,0.001,38927.0,38917.0,0.56891973]
[1646434342633,0.35803854,38931.0,38918.0,1.126702]
[1646434342831,0.4298728,38933.0,38919.0,0.3]
[1646434343086,0.07183426,38933.0,38919.0,0.3516]
[1646434343283,0.07183426,38933.0,38920.0,0.44861449]
[1646434343485,0.07183426,38933.0,38921.0,0.3]
[1646434343886,0.07183426,38933.0,38922.0,0.82529126]
[1646434344084,0.07183426,38933.0,38923.0,0.376702]
[1646434344288,0.07183426,38933.0,38924.0,0.376702]
[1646434344491,0.07183426,38933.0,38925.0,0.3]
[1646434344687,0.07183426,38933.0,38925.0,0.37467]
[1646434344888,0.07183426,38933.0,38926.0,0.44853879]
[1646434345085,0.00021636,38930.0,38926.0,0.44853879]
[1646434345486,0.00021636,38930.0,38927.0,0.3516]
[1646434345690,0.00021636,38930.0,38928.0,0.80905]
[1646434345887,0.07183426,38933.0,38928.0,0.80905]
[1646434346085,4.26e-06,38933.0,38930.0,0.7837]
[1646434346291,4.26e-06,38933.0,38932.0,0.80905]
[1646434346496,0.17163356,38945.0,38934.0,0.7837]
[1646434346690,0.17163356,38945.0,38936.0,0.7837]
[1646434346942,0.376702,38944.0,38937.0,0.44371885]
[1646434347142,0.376702,38944.0,38938.0,0.0516]
[1646434347442,0.17163356,38945.0,38938.0,0.0516]
[1646434347641,0.17163356,38945.0,38938.0,0.2936187]
[1646434347845,0.17163356,38945.0,38939.0,1.485752]
[1646434348045,0.00100356,38950.0,38941.0,0.80905]
[1646434348344,0.00100356,38950.0,38944.0,0.376702]
[1646434348546,0.00100356,38950.0,38946.0,0.06422727]
[1646434348742,0.00100356,38950.0,38947.0,0.370869]
[1646434348943,0.00100356,38950.0,38947.0,0.070869]
[1646434349144,0.00100356,38950.0,38947.0,0.0516]
[1646434349343,0.00100356,38950.0,38948.0,0.56224694]
[1646434349647,0.06321794,38959.0,38950.0,1.935752]
[1646434349843,0.06321794,38959.0,38952.0,0.02535]
[1646434349844,0.05908367,38959.0,38952.0,0.02535]
[1646434350043,0.05908367,38959.0,38953.0,0.0516]
[1646434350245,0.04408367,38959.0,38953.0,0.0516]
[1646434350450,0.04408367,38959.0,38955.0,0.02535]
[1646434350684,0.04408367,38959.0,38956.0,0.0516]
[1646434350881,0.04408367,38959.0,38957.0,0.376702]
[1646434351178,0.04408367,38959.0,38957.0,0.49251104]
[1646434351381,0.04408367,38959.0,38957.0,0.51786104]
[1646434351576,0.04408367,38959.0,38958.0,0.02535]
[1646434351778,0.04408367,38959.0,38958.0,0.089555]
[1646434351976,0.04408367,38959.0,38958.0,0.27991845]
[1646434352478,0.04408367,38959.0,38958.0,1.03826845]
[1646434352681,0.02908367,38959.0,38958.0,1.08986845]
[1646434353086,0.02908367,38959.0,38958.0,0.30616845]
[1646434353480,0.02908367,38959.0,38958.0,0.27555161]
[1646434353481,0.40578567,38959.0,38958.0,0.27555161]
[1646434353877,0.40578567,38959.0,38958.0,0.0516]
[1646434354545,0.02908367,38959.0,38952.0,0.0516]
[1646434355751,0.02408367,38959.0,38954.0,0.02535]
[1646434355948,0.00020277,38958.0,38956.0,0.80905]
[1646434356147,0.00020277,38958.0,38957.0,1.1353]
[1646434356346,0.00020277,38958.0,38957.0,0.90905]
[1646434356545,0.00020277,38958.0,38957.0,1.01065]
[1646434356747,0.02408367,38959.0,38957.0,0.2016]
[1646434357145,0.02428645,38959.0,38957.0,0.220864]
[1646434357346,0.02428645,38959.0,38957.0,0.215864]
[1646434357645,0.02428645,38959.0,38957.0,0.214114]
[1646434357847,0.02428645,38959.0,38958.0,0.7837]
[1646434358078,0.02408367,38959.0,38958.0,0.8353]
[1646434358282,0.02408367,38959.0,38958.0,0.924851]
[1646434358480,0.02408367,38959.0,38958.0,1.224851]
[1646434358880,0.02408367,38959.0,38958.0,1.324851]
[1646434359081,0.02408367,38959.0,38958.0,1.26065]
[1646434359385,0.02408367,38959.0,38958.0,1.701553]
[1646434359581,0.02408367,38959.0,38958.0,1.91619959]
[1646434359980,0.02408367,38959.0,38958.0,1.53809159]
[1646434360180,0.02408367,38959.0,38958.0,1.47389059]
[1646434360380,0.02408367,38959.0,38958.0,1.53809159]
[1646434360981,0.00020179,38960.0,38959.0,1.55849294]
[1646434361183,0.00020179,38960.0,38959.0,2.08679494]
[1646434361381,0.00020179,38960.0,38959.0,2.13679494]
[1646434361583,0.0011,38966.0,38960.0,0.02535]
[1646434361837,0.0011,38966.0,38964.0,0.80849294]
[1646434362032,0.0011,38966.0,38965.0,0.0516]
[1646434362233,0.0011,38966.0,38964.0,0.0516]
[1646434363032,0.0011,38966.0,38965.0,0.376702]
[1646434363231,0.0011,38966.0,38964.0,0.0516]
[1646434363434,0.0011,38966.0,38965.0,0.376702]
[1646434363634,0.0011,38966.0,38964.0,0.0516]
[1646434363834,0.0011,38966.0,38964.0,0.3516]
[1646434364032,0.0011,38966.0,38965.0,0.376702]
[1646434364231,0.0011,38966.0,38965.0,1.0837]
[1646434364432,0.0011,38966.0,38965.0,0.3]
[1646434364733,0.0011,38966.0,38965.0,0.676702]
[1646434364931,0.0011,38966.0,38965.0,1.160402]
[1646434365134,0.0011,38966.0,38965.0,0.676702]
[1646434365580,1.741e-05,38967.0,38966.0,0.376702]
[1646434365779,1.741e-05,38967.0,38966.0,0.528302]
[1646434365986,1.741e-05,38967.0,38966.0,1.637352]
[1646434366181,1.741e-05,38967.0,38966.0,1.26065]
[1646434366382,0.0011,38968.0,38966.0,1.637352]
[1646434366582,0.0011,38968.0,38967.0,1.585752]
[1646434366787,0.0022,38973.0,38967.0,1.637352]
[1646434366984,0.0022,38973.0,38967.0,1.656607]
[1646434367181,0.0022,38973.0,38968.0,0.80905]
[1646434367381,0.0022,38973.0,38970.0,0.80905]
[1646434367584,0.00026959,38987.0,38971.0,0.402052]
[1646434367585,0.05342345,38985.0,38971.0,0.402052]
[1646434367782,0.05342345,38985.0,38972.0,1.1353]
[1646434367984,0.05342345,38985.0,38974.0,0.7837]
[1646434368183,0.05342345,38985.0,38974.0,0.8353]
[1646434368383,0.05342345,38985.0,38976.0,0.7837]
[1646434368591,0.05342345,38985.0,38977.0,1.601527]
[1646434368782,0.05342345,38985.0,38977.0,1.301527]
[1646434369185,0.05342345,38985.0,38979.0,0.80905]
[1646434369435,0.05342345,38985.0,38983.0,0.02535]
[1646434369436,0.000574,38984.0,38983.0,0.02535]
[1646434369738,0.000574,38984.0,38983.0,1.537352]
[1646434369934,0.000574,38984.0,38983.0,1.237352]
[1646434370134,0.001,38998.0,38984.0,0.75057]
[1646434370336,0.001,38998.0,38986.0,0.7837]
[1646434370337,0.00087128,38991.0,38986.0,0.7837]
[1646434370532,0.00087128,38991.0,38987.0,0.3516]
[1646434370733,0.00087128,38991.0,38988.0,0.528302]
[1646434370934,0.00087128,38991.0,38989.0,0.428302]
[1646434371137,0.00087128,38991.0,38990.0,0.428302]
[1646434371337,0.0982,39000.0,38990.0,0.9353]
[1646434371534,0.00020394,38991.0,38990.0,0.1516]
[1646434371733,0.00020394,38991.0,38990.0,0.54755]
[1646434372036,0.00020394,38991.0,38990.0,0.828302]
[1646434372237,3.94e-06,38991.0,38990.0,0.84138489]
[1646434372435,0.0982,39000.0,38992.0,0.7837]
[1646434372632,0.0982,39000.0,38990.0,0.46468289]
[1646434372633,0.0982,39000.0,38994.0,0.376702]
[1646434372834,0.0982,39000.0,38995.0,0.4]
[1646434373077,0.0982,39000.0,38994.0,0.0516]
[1646434373578,0.0982,39000.0,38995.0,0.3]
[1646434373779,0.0982,39000.0,38994.0,0.0516]
[1646434374177,0.0982,39000.0,38995.0,0.3]
[1646434374377,0.0982,39000.0,38994.0,0.0516]
[1646434374580,0.0982,39000.0,38995.0,1.160402]
[1646434374780,0.0982,39000.0,38996.0,1.212002]
[1646434374980,0.0982,39000.0,38998.0,0.7837]
[1646434375179,0.0982,39000.0,38999.0,0.0516]
[1646434375388,0.0982,39000.0,38999.0,0.8353]
[1646434375580,0.0982,39000.0,38999.0,0.428302]
[1646434375779,0.0976,39000.0,38999.0,0.428302]
[1646434376083,0.0976,39000.0,38999.0,0.0516]
[1646434376285,0.474302,39000.0,38999.0,0.0516]
[1646434377227,0.0976,39000.0,38999.0,0.0516]
[1646434377525,0.0976,39000.0,38994.0,0.0516]
[1646434377928,0.15,38998.0,38985.0,0.0516]
[1646434378130,0.676702,38999.0,38990.0,0.001]
[1646434378131,0.376702,38992.0,38990.0,0.001]
[1646434378329,0.926702,38991.0,38990.0,0.001]
[1646434378530,0.976702,38991.0,38990.0,0.001]
[1646434378930,0.44089654,38990.0,38982.0,0.78902223]
[1646434379133,0.6516,38991.0,38982.0,0.37032223]
[1646434379134,0.526702,38983.0,38982.0,0.37032223]
[1646434379329,1.028302,38983.0,38960.0,0.2391]
[1646434379530,0.15,38976.0,38959.0,0.7946]
[1646434379733,0.476702,38982.0,38944.0,0.4971]
[1646434379734,0.02535,38974.0,38946.0,0.7825]
[1646434379931,0.15,38971.0,38947.0,1.04541215]
[1646434380129,0.15,38964.0,38947.0,0.7946]
[1646434380331,0.15,38959.0,38956.0,0.003]
[1646434380595,0.526702,38959.0,38956.0,0.003]
[1646434380793,0.376702,38959.0,38956.0,0.003]
[1646434380993,0.526702,38959.0,38956.0,0.003]
[1646434381195,0.1,38962.0,38947.0,0.7946]
[1646434381196,0.17535,38963.0,38947.0,0.7936]
[1646434381397,0.32535,38963.0,38947.0,0.7936]
[1646434381795,0.02535,38963.0,38947.0,0.7936]
[1646434382195,0.02535,38961.0,38947.0,0.7936]
[1646434382997,0.02535,38961.0,38949.0,0.001]
[1646434383201,0.3,38966.0,38949.0,0.001]
[1646434383400,0.3,38971.0,38951.0,0.7837]
[1646434383699,0.7363519,38982.0,38956.0,0.019264]
[1646434383700,0.3,38973.0,38956.0,0.019264]
[1646434383897,0.3,38975.0,38953.0,0.7837]
[1646434384099,0.15,38974.0,38954.0,1.224156]
[1646434384337,0.32535,38973.0,38955.0,0.064213]
[1646434384532,0.02535,38972.0,38956.0,0.376244]
[1646434385032,0.02535,38972.0,38954.0,0.7837]
[1646434385232,0.02535,38972.0,38956.0,0.376244]
[1646434385433,0.0516,38976.0,38954.0,0.376244]
[1646434385434,0.02535,38969.0,38954.0,0.376244]
[1646434385633,0.3,38969.0,38954.0,0.376244]
[1646434385834,0.02535,38974.0,38954.0,0.376244]
[1646434385835,0.08957,38974.0,38954.0,0.376244]
[1646434386036,0.02535,38972.0,38954.0,0.376244]
[1646434386234,0.3,38973.0,38954.0,0.376244]
[1646434386636,0.02535,38972.0,38952.0,0.1]
[1646434386839,0.3,38973.0,38953.0,0.376244]
[1646434387636,0.02535,38972.0,38951.0,0.064222]
[1646434388080,0.02535,38972.0,38949.0,0.139531]
[1646434388280,0.32535,38973.0,38950.0,0.75]
[1646434388480,0.32535,38973.0,38950.0,1.5337]
[1646434388679,0.32535,38973.0,38951.0,0.1]
[1646434388882,0.32535,38973.0,38952.0,0.019266]
[1646434389080,0.064228,38969.0,38951.0,0.1]
[1646434389285,0.376244,38967.0,38951.0,0.1]
[1646434389485,0.15,38961.0,38949.0,0.001]
[1646434389684,0.005479,38958.0,38949.0,0.001]
[1646434389881,0.3,38958.0,38949.0,0.001]
[1646434390083,0.376244,38957.0,38949.0,0.001]
[1646434390284,0.364246,38958.0,38949.0,0.001]
[1646434390485,0.0516,38962.0,38949.0,0.001]
[1646434391084,0.0516,38962.0,38958.0,0.06]
[1646434391285,0.376244,38961.0,38958.0,0.06]
[1646434391938,0.676244,38961.0,38958.0,0.06]
[1646434392133,0.376244,38961.0,38958.0,0.06]
[1646434392534,0.3,38960.0,38958.0,0.06]
[1646434392737,0.005479,38959.0,38958.0,0.06]
[1646434393139,0.005479,38959.0,38958.0,0.05400001]
[1646434393335,0.207079,38959.0,38958.0,0.05400001]
[1646434393939,1.040779,38959.0,38958.0,0.05400001]
[1646434394141,1.333572,38959.0,38958.0,0.03889864]
[1646434394543,1.328572,38959.0,38958.0,0.03889864]
[1646434395587,1.323572,38959.0,38958.0,0.02073014]
[1646434395783,1.293572,38959.0,38958.0,1.4e-07]
[1646434396090,1.293572,38959.0,38949.0,1.4e-07]
[1646434396091,0.9837,38955.0,38949.0,1.4e-07]
[1646434396285,1.1337,38950.0,38949.0,1.4e-07]
[1646434396486,1.3020947,38950.0,38949.0,1.4e-07]
[1646434396686,1.4825047,38950.0,38949.0,1.4e-07]
[1646434396884,1.6825047,38950.0,38949.0,1.4e-07]
[1646434397086,0.7837,38946.0,38927.0,0.001]
[1646434397285,0.9337,38936.0,38927.0,0.001]
[1646434397486,0.005479,38935.0,38927.0,0.001]
[1646434397683,0.15,38934.0,38927.0,0.001]
[1646434397887,0.376244,38933.0,38927.0,0.001]
[1646434398285,0.426244,38933.0,38927.0,0.001]
[1646434398490,0.1,38932.0,38927.0,0.001]
[1646434398786,0.005479,38931.0,38927.0,0.001]
[1646434399831,0.105479,38931.0,38927.0,0.001]
[1646434400031,0.3,38930.0,38927.0,0.001]
[1646434400234,0.376244,38929.0,38927.0,0.001]
[1646434400535,0.305479,38928.0,38927.0,0.001]
[1646434400732,0.105479,38928.0,38927.0,0.001]
[1646434401832,0.005479,38928.0,38927.0,0.001]
[1646434402238,0.1286,38932.0,38927.0,0.001]
[1646434402239,0.005,38932.0,38927.0,0.001]
[1646434402435,0.005479,38931.0,38927.0,0.001]
[1646434405880,0.294,38932.0,38927.0,0.001]
[1646434406083,0.0516,38935.0,38927.0,0.001]
[1646434406481,0.376244,38934.0,38927.0,0.001]
[1646434406822,0.37083952,38934.0,38927.0,0.001]
[1646434407324,0.004,38936.0,38927.0,0.001]
[1646434407530,0.376291,38935.0,38927.0,0.001]